[Event "*** SCC Grand Prix: Titled Tuesday Blitz"]
[Site "Chess.com"]
[Date "2020.06.23"]
[Round "2"]
[White "KoustavChatterjee1"]
[Black "korbul"]
[Result "1-0"]
[WhiteElo "2757"]
[BlackElo "2506"]
[TimeControl "180+1"]
[EndTime "10:17:41 PDT"]
[Termination "KoustavChatterjee1 won by resignation"]

1. d4 {[%clk 0:03:00.6]} 1... Nf6 {[%clk 0:02:59.4]} 2. c4 {[%clk 0:03:00.7]}
2... e6 {[%clk 0:02:59.6]} 3. Nc3 {[%clk 0:03:00.7]} 3... Bb4 {[%clk 0:02:59.3]}
4. f3 {[%clk 0:03:01]} 4... c5 {[%clk 0:02:58.8]} 5. d5 {[%clk 0:03:01.1]} 5...
b5 {[%clk 0:02:54]} 6. e4 {[%clk 0:03:00.8]} 6... exd5 {[%clk 0:02:53.7]} 7.
cxd5 {[%clk 0:02:57.7]} 7... a6 {[%clk 0:02:53.2]} 8. Be2 {[%clk 0:02:34.6]}
8... d6 {[%clk 0:02:51.6]} 9. Bd3 {[%clk 0:01:58.6]} 9... O-O {[%clk 0:02:50.1]}
10. Ne2 {[%clk 0:01:58.2]} 10... Nbd7 {[%clk 0:02:49.4]} 11. O-O {[%clk
0:01:57.5]} 11... Ne5 {[%clk 0:02:44.5]} 12. Bc2 {[%clk 0:01:57.4]} 12... c4
{[%clk 0:02:33.3]} 13. h3 {[%clk 0:01:54.1]} 13... Bc5+ {[%clk 0:02:27.7]} 14.
Kh1 {[%clk 0:01:53.9]} 14... h6 {[%clk 0:02:11.6]} 15. Bf4 {[%clk 0:01:46.7]}
15... g5 {[%clk 0:02:07.7]} 16. Bh2 {[%clk 0:01:42.7]} 16... Ng6 {[%clk
0:02:07.2]} 17. f4 {[%clk 0:01:28.6]} 17... Nh5 {[%clk 0:01:56.2]} 18. e5 {[%clk
0:01:12.9]} 18... dxe5 {[%clk 0:01:42.8]} 19. fxe5 {[%clk 0:01:07.7]} 19... Bb7
{[%clk 0:01:14.7]} 20. Ne4 {[%clk 0:01:04.9]} 20... Be3 {[%clk 0:01:09.3]} 21.
N2c3 {[%clk 0:00:56.8]} 21... b4 {[%clk 0:00:57.3]} 22. Qxh5 {[%clk 0:00:55]}
22... bxc3 {[%clk 0:00:55.8]} 23. Qxh6 {[%clk 0:00:54]} 23... g4 {[%clk
0:00:26.5]} 24. Qxe3 {[%clk 0:00:52.7]} 24... Kg7 {[%clk 0:00:20.7]} 25. Nd6
{[%clk 0:00:45.1]} 25... Qh4 {[%clk 0:00:13.8]} 26. Nf5+ {[%clk 0:00:43.7]} 1-0

[Event "*** SCC Grand Prix: Titled Tuesday Blitz"]
[Site "Chess.com"]
[Date "2020.06.23"]
[Round "2"]
[White "goofypenguin96"]
[Black "mmmflatbread"]
[Result "0-1"]
[WhiteElo "2343"]
[BlackElo "2793"]
[TimeControl "180+1"]
[EndTime "10:17:45 PDT"]
[Termination "mmmflatbread won on time"]

1. e4 {[%clk 0:03:00.9]} 1... Nf6 {[%clk 0:03:00.9]} 2. Nc3 {[%clk 0:03:00.3]}
2... d6 {[%clk 0:03:00.3]} 3. d4 {[%clk 0:02:59.6]} 3... g6 {[%clk 0:03:00.8]}
4. f4 {[%clk 0:02:58.7]} 4... Bg7 {[%clk 0:03:00.7]} 5. Nf3 {[%clk 0:02:58.8]}
5... c5 {[%clk 0:03:01.3]} 6. dxc5 {[%clk 0:02:47.9]} 6... Qa5 {[%clk
0:03:00.2]} 7. Bb5+ {[%clk 0:02:41.3]} 7... Bd7 {[%clk 0:02:59.5]} 8. Bxd7+
{[%clk 0:02:41.5]} 8... Nbxd7 {[%clk 0:03:00.1]} 9. O-O {[%clk 0:02:36.3]} 9...
Nxc5 {[%clk 0:02:58.8]} 10. Qe2 {[%clk 0:02:28.1]} 10... O-O {[%clk 0:02:58.1]}
11. a3 {[%clk 0:02:25.8]} 11... Qc7 {[%clk 0:02:55.8]} 12. e5 {[%clk 0:02:15.1]}
12... dxe5 {[%clk 0:02:55.2]} 13. fxe5 {[%clk 0:02:16]} 13... Nfd7 {[%clk
0:02:55.3]} 14. Bf4 {[%clk 0:02:12.7]} 14... Ne6 {[%clk 0:02:54.7]} 15. Bg3
{[%clk 0:02:12.8]} 15... Rfd8 {[%clk 0:02:48.7]} 16. Kh1 {[%clk 0:02:08]} 16...
Nb6 {[%clk 0:02:46.9]} 17. Rad1 {[%clk 0:02:06.1]} 17... Qc4 {[%clk 0:02:46]}
18. Qf2 {[%clk 0:01:51.8]} 18... Rxd1 {[%clk 0:02:45.1]} 19. Rxd1 {[%clk
0:01:51.4]} 19... Rd8 {[%clk 0:02:44.2]} 20. Rxd8+ {[%clk 0:01:46.7]} 20... Nxd8
{[%clk 0:02:45.1]} 21. h3 {[%clk 0:01:41.3]} 21... Nc6 {[%clk 0:02:44.3]} 22.
Qe2 {[%clk 0:01:21.4]} 22... Qxe2 {[%clk 0:02:42.8]} 23. Nxe2 {[%clk 0:01:22.3]}
23... Nc4 {[%clk 0:02:42.3]} 24. b3 {[%clk 0:01:10.8]} 24... Nxa3 {[%clk
0:02:42]} 25. Ned4 {[%clk 0:01:11.2]} 25... Nxd4 {[%clk 0:02:37.9]} 26. Nxd4
{[%clk 0:01:12.1]} 26... a6 {[%clk 0:02:37.7]} 27. Kg1 {[%clk 0:01:09.3]} 27...
Kf8 {[%clk 0:02:31.2]} 28. Kf1 {[%clk 0:01:06.9]} 28... Nb5 {[%clk 0:02:25.8]}
29. Nxb5 {[%clk 0:01:04]} 29... axb5 {[%clk 0:02:26.7]} 30. Ke2 {[%clk
0:01:04.4]} 30... Ke8 {[%clk 0:02:27.1]} 31. Ke3 {[%clk 0:01:04.5]} 31... Kd7
{[%clk 0:02:27.5]} 32. Ke4 {[%clk 0:01:04]} 32... Kc6 {[%clk 0:02:25.3]} 33. Bf4
{[%clk 0:00:58]} 33... f6 {[%clk 0:02:22.4]} 34. exf6 {[%clk 0:00:55.3]} 34...
exf6 {[%clk 0:02:23.3]} 35. g4 {[%clk 0:00:42.2]} 35... Bf8 {[%clk 0:02:22.5]}
36. Bd2 {[%clk 0:00:39.9]} 36... Be7 {[%clk 0:02:21.2]} 37. Bc3 {[%clk
0:00:39.9]} 37... Kd6 {[%clk 0:02:20.6]} 38. Bb4+ {[%clk 0:00:15.5]} 38... Ke6
{[%clk 0:02:20.4]} 39. Bxe7 {[%clk 0:00:06.9]} 39... Kxe7 {[%clk 0:02:20.2]} 40.
Kd5 {[%clk 0:00:07.3]} 40... b6 {[%clk 0:01:56.9]} 41. Kc6 {[%clk 0:00:06.5]}
41... b4 {[%clk 0:01:50.9]} 42. Kb5 {[%clk 0:00:03.1]} 42... f5 {[%clk
0:01:47.2]} 43. Kxb4 {[%clk 0:00:02.2]} 43... fxg4 {[%clk 0:01:45.8]} 44. hxg4
{[%clk 0:00:03.1]} 44... h5 {[%clk 0:01:45.9]} 45. gxh5 {[%clk 0:00:02.4]} 45...
gxh5 {[%clk 0:01:46.8]} 46. Kb5 {[%clk 0:00:02.6]} 46... h4 {[%clk 0:01:47.1]}
47. Kxb6 {[%clk 0:00:03.5]} 47... h3 {[%clk 0:01:47.6]} 48. c4 {[%clk
0:00:04.4]} 48... h2 {[%clk 0:01:48.2]} 49. b4 {[%clk 0:00:05.3]} 49... h1=Q
{[%clk 0:01:48.3]} 50. c5 {[%clk 0:00:06.2]} 50... Kd7 {[%clk 0:01:48.3]} 51. b5
{[%clk 0:00:06.6]} 51... Qg1 {[%clk 0:01:48.7]} 52. Kb7 {[%clk 0:00:02.3]} 52...
Qxc5 {[%clk 0:01:48.5]} 53. b6 {[%clk 0:00:03.2]} 53... Qa5 {[%clk 0:01:47.7]}
0-1

[Event "*** SCC Grand Prix: Titled Tuesday Blitz"]
[Site "Chess.com"]
[Date "2020.06.23"]
[Round "2"]
[White "IM_Tissir"]
[Black "LionTheLeon_06"]
[Result "0-1"]
[WhiteElo "2472"]
[BlackElo "2704"]
[TimeControl "180+1"]
[EndTime "10:17:47 PDT"]
[Termination "LionTheLeon_06 won by checkmate"]

1. e4 {[%clk 0:03:00.9]} 1... c5 {[%clk 0:02:59.7]} 2. Nc3 {[%clk 0:03:00.2]}
2... d6 {[%clk 0:02:59.5]} 3. Nf3 {[%clk 0:02:58.9]} 3... Nf6 {[%clk 0:02:59.3]}
4. d4 {[%clk 0:02:58.1]} 4... cxd4 {[%clk 0:03:00.2]} 5. Nxd4 {[%clk 0:02:58.7]}
5... a6 {[%clk 0:03:00.5]} 6. Bc4 {[%clk 0:02:57.5]} 6... e6 {[%clk 0:03:00.3]}
7. Bb3 {[%clk 0:02:57.8]} 7... b5 {[%clk 0:02:59.6]} 8. O-O {[%clk 0:02:53]}
8... Be7 {[%clk 0:02:59.5]} 9. Re1 {[%clk 0:02:50.1]} 9... O-O {[%clk
0:02:58.5]} 10. Qf3 {[%clk 0:02:49.6]} 10... Qc7 {[%clk 0:02:54]} 11. Qg3 {[%clk
0:02:49.3]} 11... Bd7 {[%clk 0:02:44.5]} 12. Bh6 {[%clk 0:02:46.6]} 12... Ne8
{[%clk 0:02:39.9]} 13. Rad1 {[%clk 0:02:45.4]} 13... Nc6 {[%clk 0:02:39.3]} 14.
a3 {[%clk 0:01:36.4]} 14... Ne5 {[%clk 0:02:13.2]} 15. Bg5 {[%clk 0:01:30.8]}
15... Nf6 {[%clk 0:02:05.1]} 16. Qh3 {[%clk 0:01:15.2]} 16... Nc4 {[%clk
0:01:54.7]} 17. Bc1 {[%clk 0:01:13.9]} 17... Rac8 {[%clk 0:01:43.6]} 18. f4
{[%clk 0:01:11.7]} 18... Rfd8 {[%clk 0:00:52.4]} 19. f5 {[%clk 0:01:08.2]} 19...
e5 {[%clk 0:00:48.5]} 20. Nf3 {[%clk 0:01:08]} 20... Bc6 {[%clk 0:00:41.8]} 21.
Nd5 {[%clk 0:00:45.2]} 21... Bxd5 {[%clk 0:00:39]} 22. exd5 {[%clk 0:00:46.1]}
22... Na5 {[%clk 0:00:38.4]} 23. Ng5 {[%clk 0:00:40.4]} 23... Nxb3 {[%clk
0:00:36.7]} 24. cxb3 {[%clk 0:00:41.3]} 24... Qc2 {[%clk 0:00:31.8]} 25. b4
{[%clk 0:00:40.5]} 25... Rc4 {[%clk 0:00:23.8]} 26. Rd2 {[%clk 0:00:35.6]} 26...
Qb1 {[%clk 0:00:21.2]} 27. Rf2 {[%clk 0:00:31.6]} 27... Rxc1 {[%clk 0:00:19.4]}
28. Rff1 {[%clk 0:00:29.3]} 28... Rxe1 {[%clk 0:00:19.1]} 29. Rxe1 {[%clk
0:00:30.2]} 29... Qxe1# {[%clk 0:00:19.4]} 0-1

[Event "*** SCC Grand Prix: Titled Tuesday Blitz"]
[Site "Chess.com"]
[Date "2020.06.23"]
[Round "2"]
[White "Leonid_Starozhilov"]
[Black "TheNextLevelFan"]
[Result "1-0"]
[WhiteElo "2726"]
[BlackElo "2495"]
[TimeControl "180+1"]
[EndTime "10:17:48 PDT"]
[Termination "Leonid_Starozhilov won by resignation"]

1. e4 {[%clk 0:03:00.9]} 1... e5 {[%clk 0:02:59.5]} 2. Nf3 {[%clk 0:03:00.8]}
2... Nc6 {[%clk 0:02:59.7]} 3. Bc4 {[%clk 0:03:00.4]} 3... Bc5 {[%clk
0:02:58.5]} 4. d3 {[%clk 0:03:00.7]} 4... Nf6 {[%clk 0:02:57]} 5. Nc3 {[%clk
0:03:00.3]} 5... O-O {[%clk 0:02:55.2]} 6. Be3 {[%clk 0:03:00]} 6... Bb6 {[%clk
0:02:52.7]} 7. a3 {[%clk 0:02:56.2]} 7... d6 {[%clk 0:02:51.1]} 8. h3 {[%clk
0:02:56.1]} 8... Be6 {[%clk 0:02:45.6]} 9. O-O {[%clk 0:02:54.3]} 9... Bxe3
{[%clk 0:02:39.6]} 10. fxe3 {[%clk 0:02:52.2]} 10... Bxc4 {[%clk 0:02:39.7]} 11.
dxc4 {[%clk 0:02:53.1]} 11... Ne7 {[%clk 0:02:32.5]} 12. c5 {[%clk 0:02:45]}
12... dxc5 {[%clk 0:02:08.4]} 13. Nxe5 {[%clk 0:02:42.2]} 13... Qd6 {[%clk
0:02:05.2]} 14. Qxd6 {[%clk 0:02:19.5]} 14... cxd6 {[%clk 0:02:04.7]} 15. Nc4
{[%clk 0:02:20.4]} 15... Rfd8 {[%clk 0:01:54.4]} 16. Rad1 {[%clk 0:02:13]} 16...
d5 {[%clk 0:01:54.3]} 17. e5 {[%clk 0:02:05.6]} 17... dxc4 {[%clk 0:01:28.9]}
18. exf6 {[%clk 0:01:41.1]} 18... gxf6 {[%clk 0:01:29.5]} 19. Ne4 {[%clk
0:01:33.4]} 19... f5 {[%clk 0:01:21.8]} 20. Nxc5 {[%clk 0:01:28.6]} 20... b6
{[%clk 0:01:21.3]} 21. Nd7 {[%clk 0:01:19.9]} 21... Kg7 {[%clk 0:01:21.6]} 22.
Ne5 {[%clk 0:01:19.8]} 22... Kf6 {[%clk 0:01:16.3]} 23. Nxc4 {[%clk 0:01:15.7]}
23... Ke6 {[%clk 0:01:09.9]} 24. a4 {[%clk 0:01:12.6]} 24... Nd5 {[%clk
0:01:05.3]} 25. Rd4 {[%clk 0:01:02.9]} 25... Nb4 {[%clk 0:01:01]} 26. Na3 {[%clk
0:00:43.3]} 26... Nc6 {[%clk 0:00:47.1]} 27. Rh4 {[%clk 0:00:40.3]} 27... Rd2
{[%clk 0:00:30.3]} 28. Rh6+ {[%clk 0:00:33.3]} 28... Kd5 {[%clk 0:00:27.6]} 29.
Rxf5+ {[%clk 0:00:30.1]} 29... Ne5 {[%clk 0:00:22.3]} 30. Rxe5+ {[%clk
0:00:24.8]} 1-0

[Event "*** SCC Grand Prix: Titled Tuesday Blitz"]
[Site "Chess.com"]
[Date "2020.06.23"]
[Round "2"]
[White "SharapovEvgeny"]
[Black "zurzan"]
[Result "1-0"]
[WhiteElo "2369"]
[BlackElo "1924"]
[TimeControl "180+1"]
[EndTime "10:17:48 PDT"]
[Termination "SharapovEvgeny won on time"]

1. e4 {[%clk 0:02:58.5]} 1... Nf6 {[%clk 0:02:59.2]} 2. Nc3 {[%clk 0:02:57.3]}
2... d5 {[%clk 0:02:58.7]} 3. exd5 {[%clk 0:02:56.8]} 3... Nxd5 {[%clk
0:02:58.6]} 4. Bc4 {[%clk 0:02:56.5]} 4... Nb6 {[%clk 0:02:57.6]} 5. Bb3 {[%clk
0:02:55.1]} 5... g6 {[%clk 0:02:57.8]} 6. Nf3 {[%clk 0:02:54.1]} 6... Bg7 {[%clk
0:02:57.8]} 7. d4 {[%clk 0:02:53.5]} 7... O-O {[%clk 0:02:57.7]} 8. O-O {[%clk
0:02:52.4]} 8... c6 {[%clk 0:02:55.6]} 9. Re1 {[%clk 0:02:51.4]} 9... Bg4 {[%clk
0:02:54.7]} 10. Be3 {[%clk 0:02:49.4]} 10... N8d7 {[%clk 0:02:54]} 11. h3 {[%clk
0:02:49]} 11... Bxf3 {[%clk 0:02:43.1]} 12. Qxf3 {[%clk 0:02:47.8]} 12... e6
{[%clk 0:02:39.7]} 13. Ne4 {[%clk 0:02:45.8]} 13... h6 {[%clk 0:02:26.3]} 14. c3
{[%clk 0:02:44.3]} 14... Nd5 {[%clk 0:02:24.5]} 15. Bd2 {[%clk 0:02:43.1]} 15...
N7f6 {[%clk 0:02:16.8]} 16. Nc5 {[%clk 0:02:41.4]} 16... b6 {[%clk 0:02:11.6]}
17. Nd3 {[%clk 0:02:40.4]} 17... Ne7 {[%clk 0:01:53.9]} 18. Rad1 {[%clk
0:02:36.8]} 18... Nf5 {[%clk 0:01:53]} 19. Qxc6 {[%clk 0:02:32.5]} 19... Rc8
{[%clk 0:01:50.6]} 20. Qf3 {[%clk 0:02:31.4]} 20... Nh4 {[%clk 0:01:41.4]} 21.
Qe2 {[%clk 0:02:29.5]} 21... Nd5 {[%clk 0:01:32.9]} 22. Qg4 {[%clk 0:02:21.4]}
22... Nf5 {[%clk 0:01:24.1]} 23. Nf4 {[%clk 0:02:19.8]} 23... Nxf4 {[%clk
0:01:21.5]} 24. Bxf4 {[%clk 0:02:18.6]} 24... h5 {[%clk 0:01:04.9]} 25. Qf3
{[%clk 0:02:17.5]} 25... Re8 {[%clk 0:00:38.4]} 26. Be5 {[%clk 0:02:16.3]} 26...
Qd7 {[%clk 0:00:21]} 27. g4 {[%clk 0:02:13.8]} 27... Nd6 {[%clk 0:00:19.9]} 28.
gxh5 {[%clk 0:02:10.8]} 28... gxh5 {[%clk 0:00:19.4]} 29. Qxh5 {[%clk 0:02:10]}
29... Nf5 {[%clk 0:00:17.1]} 30. Bc2 {[%clk 0:02:06.7]} 30... Bxe5 {[%clk
0:00:07.9]} 31. Rxe5 {[%clk 0:02:05.4]} 31... f6 {[%clk 0:00:06.4]} 32. Ree1
{[%clk 0:02:03.4]} 32... Qh7 {[%clk 0:00:04.7]} 33. Qxh7+ {[%clk 0:02:01.3]}
33... Kxh7 {[%clk 0:00:05]} 34. Bxf5+ {[%clk 0:02:00.7]} 34... exf5 {[%clk
0:00:05.9]} 35. Rxe8 {[%clk 0:01:57.2]} 35... Rxe8 {[%clk 0:00:06.8]} 36. Kf1
{[%clk 0:01:56.4]} 36... Rg8 {[%clk 0:00:05.8]} 37. Re1 {[%clk 0:01:55.6]} 37...
Rg7 {[%clk 0:00:05.7]} 38. d5 {[%clk 0:01:52.9]} 38... Rd7 {[%clk 0:00:04.3]}
39. Rd1 {[%clk 0:01:51.1]} 39... Kg6 {[%clk 0:00:03.7]} 40. c4 {[%clk
0:01:50.3]} 40... Rd6 {[%clk 0:00:03.5]} 41. f4 {[%clk 0:01:49.7]} 41... Kh5
{[%clk 0:00:03]} 42. Kg2 {[%clk 0:01:49]} 42... Kh4 {[%clk 0:00:03]} 43. b4
{[%clk 0:01:48.1]} 43... a6 {[%clk 0:00:02]} 44. c5 {[%clk 0:01:47]} 44... bxc5
{[%clk 0:00:02.3]} 45. bxc5 {[%clk 0:01:46.6]} 45... Rd8 {[%clk 0:00:02.4]} 46.
d6 {[%clk 0:01:46.4]} 46... Rg8+ {[%clk 0:00:02.4]} 47. Kf2 {[%clk 0:01:45.7]}
47... Kxh3 {[%clk 0:00:02.2]} 48. d7 {[%clk 0:01:45.1]} 48... Rg2+ {[%clk
0:00:02.2]} 49. Ke3 {[%clk 0:01:44.2]} 49... Kg3 {[%clk 0:00:02.9]} 50. d8=Q
{[%clk 0:01:42.2]} 50... Rf2 {[%clk 0:00:03.8]} 51. Qg8+ {[%clk 0:01:40]} 1-0

[Event "*** SCC Grand Prix: Titled Tuesday Blitz"]
[Site "Chess.com"]
[Date "2020.06.23"]
[Round "2"]
[White "Canairez"]
[Black "Supernotar"]
[Result "0-1"]
[WhiteElo "2342"]
[BlackElo "2790"]
[TimeControl "180+1"]
[EndTime "10:17:49 PDT"]
[Termination "Supernotar won on time"]

1. d4 {[%clk 0:03:00.9]} 1... d5 {[%clk 0:02:42.3]} 2. Nf3 {[%clk 0:03:01.8]}
2... Nf6 {[%clk 0:02:40.8]} 3. c4 {[%clk 0:03:02.2]} 3... dxc4 {[%clk
0:02:39.1]} 4. Nc3 {[%clk 0:03:01.9]} 4... a6 {[%clk 0:02:38.8]} 5. a4 {[%clk
0:03:00.8]} 5... Nc6 {[%clk 0:02:38.8]} 6. e3 {[%clk 0:02:55.3]} 6... Na5 {[%clk
0:02:38.3]} 7. Ne5 {[%clk 0:02:55.3]} 7... Be6 {[%clk 0:02:38.4]} 8. Be2 {[%clk
0:02:42.6]} 8... g6 {[%clk 0:02:38.5]} 9. O-O {[%clk 0:02:34.3]} 9... Bg7 {[%clk
0:02:37.5]} 10. e4 {[%clk 0:02:34.3]} 10... Nb3 {[%clk 0:02:36.8]} 11. Rb1
{[%clk 0:02:28.8]} 11... Nxd4 {[%clk 0:02:33.8]} 12. Bxc4 {[%clk 0:02:20.1]}
12... Bxc4 {[%clk 0:02:33]} 13. Nxc4 {[%clk 0:02:21]} 13... O-O {[%clk
0:02:30.9]} 14. Be3 {[%clk 0:02:18.2]} 14... c5 {[%clk 0:02:30.8]} 15. a5 {[%clk
0:02:16.3]} 15... Nd7 {[%clk 0:02:28.7]} 16. Nd5 {[%clk 0:02:13.4]} 16... e6
{[%clk 0:02:23.6]} 17. Ndb6 {[%clk 0:02:09.7]} 17... Nxb6 {[%clk 0:02:23.7]} 18.
Nxb6 {[%clk 0:02:10.6]} 18... Rb8 {[%clk 0:02:24.2]} 19. Bf4 {[%clk 0:02:07]}
19... e5 {[%clk 0:02:23]} 20. Be3 {[%clk 0:02:05.9]} 20... Qe7 {[%clk
0:02:16.4]} 21. Qa4 {[%clk 0:02:02.2]} 21... Rbd8 {[%clk 0:02:12.1]} 22. h3
{[%clk 0:01:44.1]} 22... f5 {[%clk 0:02:11]} 23. f3 {[%clk 0:01:37.6]} 23... Qh4
{[%clk 0:02:03.9]} 24. Qc4+ {[%clk 0:01:32.4]} 24... Kh8 {[%clk 0:02:03.7]} 25.
Qxc5 {[%clk 0:01:31.8]} 25... fxe4 {[%clk 0:01:59.2]} 26. fxe4 {[%clk
0:01:30.6]} 26... Qxe4 {[%clk 0:01:53.1]} 27. Bg5 {[%clk 0:01:13.6]} 27... Rde8
{[%clk 0:01:45]} 28. Nd7 {[%clk 0:00:59.5]} 28... Rxf1+ {[%clk 0:01:39.5]} 29.
Rxf1 {[%clk 0:01:00.4]} 29... Ne6 {[%clk 0:01:29.2]} 30. Qd6 {[%clk 0:00:14.5]}
30... Nxg5 {[%clk 0:01:20.7]} 31. Nf6 {[%clk 0:00:10.3]} 31... Qe3+ {[%clk
0:01:19.8]} 32. Kh1 {[%clk 0:00:08.8]} 32... Rf8 {[%clk 0:01:19.7]} 33. Qe7
{[%clk 0:00:05.1]} 33... Ne4 {[%clk 0:01:13.5]} 34. Rf3 {[%clk 0:00:05.1]} 34...
Qe1+ {[%clk 0:01:04.2]} 35. Kh2 {[%clk 0:00:06]} 35... Nxf6 {[%clk 0:01:03.8]}
36. Rxf6 {[%clk 0:00:04.5]} 36... Rxf6 {[%clk 0:01:02.8]} 37. Qe8+ {[%clk
0:00:04.6]} 37... Rf8 {[%clk 0:01:02.4]} 0-1

[Event "*** SCC Grand Prix: Titled Tuesday Blitz"]
[Site "Chess.com"]
[Date "2020.06.23"]
[Round "2"]
[White "Gahan-MG"]
[Black "Gabrielian_Artur"]
[Result "0-1"]
[WhiteElo "2507"]
[BlackElo "2762"]
[TimeControl "180+1"]
[EndTime "10:17:51 PDT"]
[Termination "Gabrielian_Artur won by resignation"]

1. e4 {[%clk 0:02:46.8]} 1... c5 {[%clk 0:02:59.6]} 2. c3 {[%clk 0:02:46.5]}
2... g6 {[%clk 0:02:58.3]} 3. d4 {[%clk 0:02:46.6]} 3... Bg7 {[%clk 0:02:55.8]}
4. Nf3 {[%clk 0:02:45.2]} 4... Qc7 {[%clk 0:02:54.4]} 5. d5 {[%clk 0:02:31.1]}
5... d6 {[%clk 0:02:54]} 6. Bd3 {[%clk 0:02:30.6]} 6... Bg4 {[%clk 0:02:53.2]}
7. h3 {[%clk 0:02:30.5]} 7... Bxf3 {[%clk 0:02:53]} 8. Qxf3 {[%clk 0:02:30.4]}
8... Nd7 {[%clk 0:02:53.6]} 9. Bc2 {[%clk 0:02:29.9]} 9... Ngf6 {[%clk
0:02:50.7]} 10. O-O {[%clk 0:02:29.9]} 10... O-O {[%clk 0:02:49.8]} 11. Bg5
{[%clk 0:02:28.6]} 11... h6 {[%clk 0:02:49]} 12. Bf4 {[%clk 0:02:27.3]} 12... c4
{[%clk 0:02:48.7]} 13. Nd2 {[%clk 0:02:26.9]} 13... b5 {[%clk 0:02:48.2]} 14.
Qe2 {[%clk 0:02:20.3]} 14... Nc5 {[%clk 0:02:44]} 15. Rae1 {[%clk 0:02:16.6]}
15... Nfd7 {[%clk 0:02:43]} 16. Qe3 {[%clk 0:02:13.1]} 16... Kh7 {[%clk
0:02:38.4]} 17. g4 {[%clk 0:02:11.6]} 17... Ne5 {[%clk 0:02:37.3]} 18. Bxe5
{[%clk 0:02:03.1]} 18... dxe5 {[%clk 0:02:30.1]} 19. Kg2 {[%clk 0:01:59]} 19...
Nb7 {[%clk 0:02:21.2]} 20. Rh1 {[%clk 0:01:41.1]} 20... Nd6 {[%clk 0:02:16.9]}
21. Nf1 {[%clk 0:01:40.7]} 21... a5 {[%clk 0:02:12.2]} 22. Ng3 {[%clk
0:01:40.4]} 22... b4 {[%clk 0:02:12]} 23. h4 {[%clk 0:01:32.5]} 23... Rab8
{[%clk 0:02:06]} 24. Ba4 {[%clk 0:01:22.5]} 24... bxc3 {[%clk 0:02:00.6]} 25.
bxc3 {[%clk 0:01:23.4]} 25... Rb2 {[%clk 0:01:59.7]} 26. Re2 {[%clk 0:01:22.3]}
26... Rfb8 {[%clk 0:01:59.1]} 27. Bc6 {[%clk 0:01:21.7]} 27... Qb6 {[%clk
0:01:46.3]} 28. Qf3 {[%clk 0:01:09.4]} 28... Rxe2 {[%clk 0:01:43.2]} 29. Qxe2
{[%clk 0:01:09.9]} 29... Qb2 {[%clk 0:01:40.5]} 30. Re1 {[%clk 0:01:07.8]} 30...
Qxe2 {[%clk 0:01:36.5]} 31. Rxe2 {[%clk 0:01:08.7]} 31... Bf6 {[%clk 0:01:34]}
32. h5 {[%clk 0:01:06]} 32... Bg5 {[%clk 0:01:33.5]} 33. hxg6+ {[%clk
0:01:04.8]} 33... fxg6 {[%clk 0:01:33.4]} 34. Rc2 {[%clk 0:00:54.1]} 34... Rb1
{[%clk 0:01:28.7]} 35. Nf1 {[%clk 0:00:52.5]} 35... Nxe4 {[%clk 0:01:25.8]} 36.
Ne3 {[%clk 0:00:49.3]} 36... Nd6 {[%clk 0:01:10]} 37. Kf3 {[%clk 0:00:47.9]}
37... e4+ {[%clk 0:01:09.5]} 38. Kg3 {[%clk 0:00:46.8]} 38... Kg7 {[%clk
0:01:07.5]} 39. Kg2 {[%clk 0:00:34.9]} 39... Kf6 {[%clk 0:01:06.2]} 40. Kg3
{[%clk 0:00:28.7]} 40... Rg1+ {[%clk 0:01:04.1]} 41. Ng2 {[%clk 0:00:27.3]}
41... Ke5 {[%clk 0:01:00.7]} 42. Rb2 {[%clk 0:00:23]} 42... Bf4+ {[%clk
0:00:56.1]} 0-1

[Event "*** SCC Grand Prix: Titled Tuesday Blitz"]
[Site "Chess.com"]
[Date "2020.06.23"]
[Round "2"]
[White "Infernal_XaM"]
[Black "CrushingKings"]
[Result "1-0"]
[WhiteElo "2806"]
[BlackElo "2530"]
[TimeControl "180+1"]
[EndTime "10:17:52 PDT"]
[Termination "Infernal_XaM won by resignation"]

1. d4 {[%clk 0:03:00.9]} 1... Nf6 {[%clk 0:02:58.8]} 2. c4 {[%clk 0:03:01.8]}
2... g6 {[%clk 0:02:57]} 3. Nc3 {[%clk 0:03:02.3]} 3... Bg7 {[%clk 0:02:57.4]}
4. e4 {[%clk 0:03:02.6]} 4... d6 {[%clk 0:02:58]} 5. f3 {[%clk 0:03:02.8]} 5...
c6 {[%clk 0:02:58.3]} 6. Be3 {[%clk 0:03:02.6]} 6... a6 {[%clk 0:02:58.8]} 7.
Qd2 {[%clk 0:03:03]} 7... b5 {[%clk 0:02:59]} 8. h4 {[%clk 0:03:02.6]} 8... Nbd7
{[%clk 0:02:57.1]} 9. g4 {[%clk 0:03:01.5]} 9... h5 {[%clk 0:02:56.2]} 10. g5
{[%clk 0:03:01.3]} 10... Ng8 {[%clk 0:02:56.8]} 11. f4 {[%clk 0:03:00.8]} 11...
Nb6 {[%clk 0:02:56.3]} 12. c5 {[%clk 0:02:50.5]} 12... dxc5 {[%clk 0:02:55.2]}
13. dxc5 {[%clk 0:02:50.6]} 13... Qxd2+ {[%clk 0:02:56.1]} 14. Kxd2 {[%clk
0:02:47.4]} 14... Nd7 {[%clk 0:02:55.6]} 15. Kc2 {[%clk 0:02:44.7]} 15... f5
{[%clk 0:02:28.8]} 16. exf5 {[%clk 0:02:39.4]} 16... gxf5 {[%clk 0:02:28.1]} 17.
Bg2 {[%clk 0:02:32.7]} 17... Bb7 {[%clk 0:02:26.5]} 18. Nf3 {[%clk 0:02:31.5]}
18... O-O-O {[%clk 0:02:18.7]} 19. Rhe1 {[%clk 0:02:23.2]} 19... e5 {[%clk
0:02:15.4]} 20. fxe5 {[%clk 0:02:16.6]} 20... Nxe5 {[%clk 0:02:16.3]} 21. Nxe5
{[%clk 0:02:15.6]} 21... Bxe5 {[%clk 0:02:17.2]} 22. Bh3 {[%clk 0:02:05.9]}
22... Rf8 {[%clk 0:02:06.8]} 23. Bf2 {[%clk 0:02:04.1]} 23... Bc7 {[%clk
0:01:57.7]} 24. Rad1 {[%clk 0:02:02.9]} 24... Rh7 {[%clk 0:01:57.1]} 25. Ne4
{[%clk 0:02:02.3]} 25... Re7 {[%clk 0:01:46.1]} 26. Nd6+ {[%clk 0:02:01]} 26...
Bxd6 {[%clk 0:01:46]} 27. cxd6 {[%clk 0:02:01.1]} 27... Rxe1 {[%clk 0:01:45.1]}
28. Rxe1 {[%clk 0:02:01.1]} 28... Kd7 {[%clk 0:01:43.8]} 29. Bc5 {[%clk
0:02:00.9]} 29... Bc8 {[%clk 0:01:39.5]} 30. b4 {[%clk 0:01:50.6]} 30... Kd8
{[%clk 0:01:34.8]} 31. Kc3 {[%clk 0:01:48.5]} 31... Bd7 {[%clk 0:01:31.2]} 32.
Bg2 {[%clk 0:01:27.6]} 32... f4 {[%clk 0:01:29.3]} 33. Bf3 {[%clk 0:01:27.8]}
33... Rf7 {[%clk 0:01:07.7]} 34. Kd4 {[%clk 0:01:17.8]} 34... Rf8 {[%clk
0:00:53.2]} 35. Bxh5 {[%clk 0:01:08.4]} 35... f3 {[%clk 0:00:53.7]} 36. Rf1
{[%clk 0:01:06.9]} 36... Rf4+ {[%clk 0:00:53.2]} 37. Ke5 {[%clk 0:01:05]} 37...
Rxh4 {[%clk 0:00:49.6]} 38. Bxf3 {[%clk 0:01:05]} 38... a5 {[%clk 0:00:40.3]}
39. bxa5 {[%clk 0:01:00.3]} 39... Ra4 {[%clk 0:00:40.2]} 40. Rh1 {[%clk
0:00:59.3]} 40... Ke8 {[%clk 0:00:30]} 41. Bh5+ {[%clk 0:00:54.2]} 41... Kf8
{[%clk 0:00:29.3]} 42. Rf1+ {[%clk 0:00:53.3]} 42... Kg7 {[%clk 0:00:29.5]} 43.
Rf7+ {[%clk 0:00:53.3]} 1-0